Workbook

Sheet A
D2: DEPARTMENT OF REVENUE-CHARITABLE GAMING DIVISION
D3: UNAUTHORIZED DISTRIBUTION OF THIS LISTING IS PROHIBITED
D5: ARROW INTERNATIONAL//BINGO KING
A7: FORM | C7: COST/ | F7: UNIT | G7: GROSS | H7: PAYOUT | I7: TOP | J7: DEF. | K7: PICKLE | L7: OPER. | M7: OPER. | P7: APPROVAL
A8: NO. | B8: MFR. | C8: PER | D8: DESCRIPTION | E8: TYPE | F8: COUNT | G8: PROCEEDS | H8: PERCENT | I8: PRIZE | J8: PROFIT | K8: TAX | L8: COMM. | M8: REMIT | N8: CHECK | O8: CHECK2 | P8: DATE
A9: BK750R | B9: BK | C9: 0.5 | D9: NEVADA CLUB | E9: 5 | F9: 1740 | G9: 870 | H9: 0.69 | I9: 50 | J9: 270 | K9: =SUM(J9*0.1) -> 27 | L9: =SUM(J9*0.3) -> 81 | M9: =SUM(J9-L9) -> 189 | N9: =SUM(G9-J9)/G9 -> 0.6896551724 | O9: =SUM(H9-N9) -> 0.0003448275862 | P9: 2007-09-26
A10: BK755R | B10: BK | C10: 0.5 | D10: NEVADA CLUB | E10: 5 | F10: 2160 | G10: 1080 | H10: 0.74 | I10: 100 | J10: 280 | K10: =SUM(J10*0.1) -> 28 | L10: =SUM(J10*0.3) -> 84 | M10: =SUM(J10-L10) -> 196 | N10: =SUM(G10-J10)/G10 -> 0.7407407407 | O10: =SUM(H10-N10) -> -0.0007407407407 | P10: 2007-09-26
A11: 927B | B11: BK | C11: 0.5 | D11: WILD CHERRY BELL | E11: 5 | F11: 3600 | G11: 1800 | H11: 0.7 | I11: 100 | J11: 540 | K11: =SUM(J11*0.1) -> 54 | L11: =SUM(J11*0.3) -> 162 | M11: =SUM(J11-L11) -> 378 | N11: =SUM(G11-J11)/G11 -> 0.7 | O11: =SUM(H11-N11) -> 1.110223025e-16 | P11: 1998-07-01
A12: 928B | B12: BK | C12: 1 | D12: WILD CHERRY BELL | E12: 5 | F12: 3600 | G12: 3600 | H12: 0.78 | I12: 200 | J12: 800 | K12: =SUM(J12*0.1) -> 80 | L12: =SUM(J12*0.3) -> 240 | M12: =SUM(J12-L12) -> 560 | N12: =SUM(G12-J12)/G12 -> 0.7777777778 | O12: =SUM(H12-N12) -> 0.002222222222 | P12: 1998-07-01
